[Event "January 9 Early 2024"]
[Site "https://www.chess.com"]
[Date "2024.01.11"]
[Round "3"]
[White "Akobian, Varuzhan"]
[Black "Novik, Maxim"]
[Result "1/2-1/2"]
[Board "263"]
[TimeControl "180+1"]
[WhiteFideId "13300580"]
[BlackFideId "4102924"]
[WhiteElo "2659"]
[BlackElo "2472"]
[WhiteTeam "USA"]
[BlackTeam "LTU"]
[WhiteClock "0:00:15"]
[BlackClock "0:00:09"]

1. d4 {[%clk 0:03:00]}  Nf6 {[%clk 0:02:57]} 2. c4 {[%clk 0:02:59]}  g6 {[%clk 0:02:57]} 3. Nc3 {[%clk 0:02:58]}  d5 {[%clk 0:02:56]} 4. Bf4 {[%clk 0:02:56]}  Bg7 {[%clk 0:02:54]} 5. e3 {[%clk 0:02:56]}  c5 {[%clk 0:02:53]} 6. Rc1 {[%clk 0:02:56]}  cxd4 {[%clk 0:02:53]} 7. exd4 {[%clk 0:02:54]}  O-O {[%clk 0:02:52]} 8. Nf3 {[%clk 0:02:53]}  Nc6 {[%clk 0:02:49]} 9. c5 {[%clk 0:02:53]}  Bg4 {[%clk 0:02:45]} 10. Be2 {[%clk 0:02:52]}  Ne4 {[%clk 0:02:38]} 11. Be3 {[%clk 0:02:52]}  e5 {[%clk 0:02:22]} 12. dxe5 {[%clk 0:02:48]}  Nxc3 {[%clk 0:01:51]} 13. bxc3 {[%clk 0:02:45]}  Nxe5 {[%clk 0:01:41]} 14. Nxe5 {[%clk 0:02:44]}  Bxe2 {[%clk 0:01:35]} 15. Nxf7 {[%clk 0:02:32]}  Bxd1 {[%clk 0:00:18]} 16. Nxd8 {[%clk 0:02:31]}  Raxd8 {[%clk 0:00:18]} 17. Kxd1 {[%clk 0:02:30]}  Bxc3 {[%clk 0:00:15]} 18. Rxc3 {[%clk 0:01:35]}  d4 {[%clk 0:00:14]} 19. Bxd4 {[%clk 0:01:35]}  Rxd4+ {[%clk 0:00:14]} 20. Ke2 {[%clk 0:01:35]}  Ra4 {[%clk 0:00:14]} 21. a3 {[%clk 0:01:34]}  Re8+ {[%clk 0:00:13]} 22. Kd2 {[%clk 0:01:29]}  Rd8+ {[%clk 0:00:12]} 23. Kc2 {[%clk 0:01:23]}  Re4 {[%clk 0:00:10]} 24. Re3 {[%clk 0:00:58]}  Rxe3 {[%clk 0:00:10]} 25. fxe3 {[%clk 0:00:58]}  Rd5 {[%clk 0:00:11]} 26. c6 {[%clk 0:00:48]}  bxc6 {[%clk 0:00:11]} 27. Rf1 {[%clk 0:00:45]}  Rc5+ {[%clk 0:00:10]} 28. Kb3 {[%clk 0:00:42]}  Re5 {[%clk 0:00:10]} 29. Rf3 {[%clk 0:00:42]}  Kg7 {[%clk 0:00:10]} 30. Kc4 {[%clk 0:00:40]}  g5 {[%clk 0:00:08]} 31. Kd4 {[%clk 0:00:34]}  Rd5+ {[%clk 0:00:08]} 32. Kc4 {[%clk 0:00:33]}  Re5 {[%clk 0:00:08]} 33. h3 {[%clk 0:00:32]}  h5 {[%clk 0:00:08]} 34. g3 {[%clk 0:00:22]}  Kg6 {[%clk 0:00:08]} 35. Kd4 {[%clk 0:00:21]}  Rd5+ {[%clk 0:00:08]} 36. Kc4 {[%clk 0:00:21]}  Re5 {[%clk 0:00:09]} 37. g4 {[%clk 0:00:19]}  hxg4 {[%clk 0:00:09]} 38. hxg4 {[%clk 0:00:19]}  Re4+ {[%clk 0:00:09]} 39. Kc5 {[%clk 0:00:19]}  Rxg4 {[%clk 0:00:09]} 40. Kxc6 {[%clk 0:00:20]}  Ra4 {[%clk 0:00:10]} 41. e4 {[%clk 0:00:16]}  Rxe4 {[%clk 0:00:09]} 42. Kb5 {[%clk 0:00:16]}  g4 {[%clk 0:00:09]} 43. Rf1 {[%clk 0:00:15]}  Kg5 {[%clk 0:00:09]} 44. Rf7 {[%clk 0:00:14]}  g3 {[%clk 0:00:08]} 45. Rxa7 {[%clk 0:00:14]}  Rg4 {[%clk 0:00:08]} 46. Rg7+ {[%clk 0:00:12]}  Kf5 {[%clk 0:00:08]} 47. Rf7+ {[%clk 0:00:12]}  Ke4 {[%clk 0:00:08]} 48. Rf1 {[%clk 0:00:12]}  g2 {[%clk 0:00:08]} 49. Rg1 {[%clk 0:00:12]}  Kf3 {[%clk 0:00:09]} 50. a4 {[%clk 0:00:13]}  Kf2 {[%clk 0:00:09]} 51. Rxg2+ {[%clk 0:00:13]}  Kxg2 {[%clk 0:00:09]} 52. a5 {[%clk 0:00:13]}  Kf3 {[%clk 0:00:10]} 53. a6 {[%clk 0:00:13]}  Ke4 {[%clk 0:00:10]} 54. a7 {[%clk 0:00:14]}  Rg8 {[%clk 0:00:10]} 55. Kc6 {[%clk 0:00:14]}  Kd4 {[%clk 0:00:09]} 56. Kb7 {[%clk 0:00:14]}  Kc5 {[%clk 0:00:09]} 57. a8=Q {[%clk 0:00:15]}  Rxa8 {[%clk 0:00:09]} 58. Kxa8 {[%clk 0:00:15]} 1/2-1/2

[Event "January 9 Early 2024"]
[Site "https://www.chess.com"]
[Date "2024.01.11"]
[Round "3"]
[White "McCoy, Owen"]
[Black "Marchesich, Giovanni"]
[Result "1-0"]
[Board "265"]
[TimeControl "180+1"]
[WhiteFideId "30924502"]
[BlackFideId "2824790"]
[WhiteElo "2593"]
[BlackElo "2377"]
[WhiteTeam "USA"]
[BlackTeam "ITA"]
[WhiteClock "0:00:04"]
[BlackClock "0:00:05"]

1. d4 {[%clk 0:03:00]}  g6 {[%clk 0:02:59]} 2. Nf3 {[%clk 0:02:53]}  Bg7 {[%clk 0:02:59]} 3. g3 {[%clk 0:02:54]}  d6 {[%clk 0:02:58]} 4. Bg2 {[%clk 0:02:54]}  Bd7 {[%clk 0:02:58]} 5. O-O {[%clk 0:02:52]}  Qc8 {[%clk 0:02:58]} 6. Re1 {[%clk 0:02:52]}  h5 {[%clk 0:02:58]} 7. e4 {[%clk 0:02:40]}  Nc6 {[%clk 0:02:43]} 8. c3 {[%clk 0:02:40]}  e5 {[%clk 0:02:43]} 9. dxe5 {[%clk 0:02:28]}  dxe5 {[%clk 0:02:40]} 10. Nbd2 {[%clk 0:02:21]}  Nge7 {[%clk 0:02:31]} 11. a4 {[%clk 0:02:15]}  Bh3 {[%clk 0:02:29]} 12. Bh1 {[%clk 0:02:15]}  h4 {[%clk 0:02:28]} 13. Nxh4 {[%clk 0:02:08]}  Qe6 {[%clk 0:01:53]} 14. Nhf3 {[%clk 0:02:00]}  O-O-O {[%clk 0:01:52]} 15. Ng5 {[%clk 0:01:55]}  Qf6 {[%clk 0:01:37]} 16. Nxh3 {[%clk 0:01:53]}  Rxh3 {[%clk 0:01:38]} 17. Qg4+ {[%clk 0:01:53]}  Qe6 {[%clk 0:01:37]} 18. Qxe6+ {[%clk 0:01:54]}  fxe6 {[%clk 0:01:38]} 19. Bg2 {[%clk 0:01:53]}  Rhh8 {[%clk 0:01:38]} 20. Nf3 {[%clk 0:01:52]}  Na5 {[%clk 0:01:36]} 21. Bg5 {[%clk 0:01:50]}  Rd7 {[%clk 0:01:36]} 22. Rad1 {[%clk 0:01:49]}  Rhd8 {[%clk 0:01:35]} 23. Rxd7 {[%clk 0:01:47]}  Rxd7 {[%clk 0:01:36]} 24. Bf1 {[%clk 0:01:39]}  a6 {[%clk 0:01:19]} 25. h4 {[%clk 0:01:39]}  c5 {[%clk 0:01:18]} 26. Bh3 {[%clk 0:01:38]}  Kd8 {[%clk 0:01:07]} 27. Bxe6 {[%clk 0:01:24]}  Rd3 {[%clk 0:01:07]} 28. Nd2 {[%clk 0:01:06]}  b5 {[%clk 0:01:06]} 29. axb5 {[%clk 0:01:02]}  axb5 {[%clk 0:01:07]} 30. Kf1 {[%clk 0:00:53]}  Rd6 {[%clk 0:01:04]} 31. Bg4 {[%clk 0:00:51]}  Nc6 {[%clk 0:01:04]} 32. Nb3 {[%clk 0:00:48]}  c4 {[%clk 0:00:58]} 33. Nc5 {[%clk 0:00:48]}  Ke8 {[%clk 0:00:59]} 34. Ra1 {[%clk 0:00:42]}  Kf7 {[%clk 0:00:54]} 35. Ke2 {[%clk 0:00:32]}  Bf6 {[%clk 0:00:48]} 36. Be3 {[%clk 0:00:31]}  b4 {[%clk 0:00:46]} 37. Rd1 {[%clk 0:00:25]}  Nd4+ {[%clk 0:00:39]} 38. cxd4 {[%clk 0:00:22]}  exd4 {[%clk 0:00:40]} 39. Bf4 {[%clk 0:00:22]}  d3+ {[%clk 0:00:40]} 40. Kf1 {[%clk 0:00:20]}  Rc6 {[%clk 0:00:37]} 41. e5 {[%clk 0:00:17]}  Bg7 {[%clk 0:00:31]} 42. Nxd3 {[%clk 0:00:14]}  cxd3 {[%clk 0:00:29]} 43. Rxd3 {[%clk 0:00:15]}  Rc2 {[%clk 0:00:22]} 44. b3 {[%clk 0:00:15]}  Nc6 {[%clk 0:00:20]} 45. e6+ {[%clk 0:00:11]}  Kg8 {[%clk 0:00:19]} 46. Bf3 {[%clk 0:00:04]}  Nd4 {[%clk 0:00:14]} 47. Bd5 {[%clk 0:00:04]}  Kf8 {[%clk 0:00:10]} 48. Bd6+ {[%clk 0:00:04]}  Ke8 {[%clk 0:00:10]} 49. Bxb4 {[%clk 0:00:04]}  Rc1+ {[%clk 0:00:09]} 50. Kg2 {[%clk 0:00:05]}  Ne2 {[%clk 0:00:06]} 51. Bc4 {[%clk 0:00:04]}  Rg1+ {[%clk 0:00:05]} 52. Kf3 {[%clk 0:00:04]}  Nd4+ {[%clk 0:00:05]} 53. Rxd4 {[%clk 0:00:03]}  Bxd4 {[%clk 0:00:05]} 54. Bb5+ {[%clk 0:00:04]} 1-0

[Event "January 9 Early 2024"]
[Site "https://www.chess.com"]
[Date "2024.01.11"]
[Round "3"]
[White "Limontaite, Simona"]
[Black "Radzhabov, Rodion"]
[Result "0-1"]
[Board "267"]
[TimeControl "180+1"]
[WhiteFideId "12802506"]
[BlackFideId "884715"]
[WhiteElo "2305"]
[BlackElo "2565"]
[WhiteTeam "LTU"]
[BlackTeam "RUS"]
[WhiteClock "0:00:02"]
[BlackClock "0:00:06"]

1. d4 {[%clk 0:02:52]}  Nf6 {[%clk 0:02:57]} 2. c4 {[%clk 0:02:49]}  e6 {[%clk 0:02:58]} 3. Nc3 {[%clk 0:02:49]}  Bb4 {[%clk 0:02:57]} 4. Qc2 {[%clk 0:02:49]}  c5 {[%clk 0:02:55]} 5. e3 {[%clk 0:02:49]}  O-O {[%clk 0:02:54]} 6. Bd3 {[%clk 0:02:48]}  d5 {[%clk 0:02:49]} 7. cxd5 {[%clk 0:02:48]}  cxd4 {[%clk 0:02:49]} 8. exd4 {[%clk 0:02:48]}  Qxd5 {[%clk 0:02:40]} 9. Nf3 {[%clk 0:02:48]}  Qh5 {[%clk 0:02:28]} 10. O-O {[%clk 0:02:37]}  Nc6 {[%clk 0:02:24]} 11. h3 {[%clk 0:02:25]}  Rd8 {[%clk 0:02:19]} 12. Rd1 {[%clk 0:02:14]}  e5 {[%clk 0:01:28]} 13. dxe5 {[%clk 0:02:00]}  Bxh3 {[%clk 0:01:27]} 14. Bf4 {[%clk 0:01:21]}  Bxc3 {[%clk 0:01:02]} 15. bxc3 {[%clk 0:01:06]}  Nd5 {[%clk 0:00:57]} 16. Bg3 {[%clk 0:01:06]}  Bg4 {[%clk 0:00:56]} 17. Be4 {[%clk 0:01:04]}  Nde7 {[%clk 0:00:41]} 18. Rxd8+ {[%clk 0:01:00]}  Rxd8 {[%clk 0:00:40]} 19. Rd1 {[%clk 0:01:00]}  Rc8 {[%clk 0:00:31]} 20. Rd2 {[%clk 0:00:41]}  Qh6 {[%clk 0:00:26]} 21. Rd6 {[%clk 0:00:37]}  Qh5 {[%clk 0:00:23]} 22. Qd2 {[%clk 0:00:33]}  Bf5 {[%clk 0:00:17]} 23. Ng5 {[%clk 0:00:13]}  h6 {[%clk 0:00:14]} 24. Bxf5 {[%clk 0:00:12]}  Nxf5 {[%clk 0:00:12]} 25. Ne4 {[%clk 0:00:10]}  Nxd6 {[%clk 0:00:12]} 26. exd6 {[%clk 0:00:10]}  Re8 {[%clk 0:00:09]} 27. f3 {[%clk 0:00:10]}  Qf5 {[%clk 0:00:06]} 28. Bf2 {[%clk 0:00:07]}  Ne5 {[%clk 0:00:04]} 29. Nc5 {[%clk 0:00:06]}  Nd7 {[%clk 0:00:03]} 30. Nxd7 {[%clk 0:00:05]}  Qxd7 {[%clk 0:00:02]} 31. c4 {[%clk 0:00:06]}  b6 {[%clk 0:00:02]} 32. Bg3 {[%clk 0:00:06]}  Re6 {[%clk 0:00:03]} 33. Kh2 {[%clk 0:00:06]}  f6 {[%clk 0:00:03]} 34. Qd5 {[%clk 0:00:06]}  Kf7 {[%clk 0:00:03]} 35. a3 {[%clk 0:00:07]}  Kg6 {[%clk 0:00:03]} 36. Qd3+ {[%clk 0:00:06]}  Kf7 {[%clk 0:00:03]} 37. Qd5 {[%clk 0:00:07]}  g6 {[%clk 0:00:03]} 38. Qd2 {[%clk 0:00:06]}  g5 {[%clk 0:00:02]} 39. Qd3 {[%clk 0:00:06]}  Kg7 {[%clk 0:00:03]} 40. Qd5 {[%clk 0:00:07]}  h5 {[%clk 0:00:03]} 41. f4 {[%clk 0:00:07]}  h4 {[%clk 0:00:03]} 42. Bf2 {[%clk 0:00:07]}  Qxd6 {[%clk 0:00:03]} 43. Qf5 {[%clk 0:00:06]}  Qxf4+ {[%clk 0:00:03]} 44. Qxf4 {[%clk 0:00:07]}  gxf4 {[%clk 0:00:04]} 45. Bxh4 {[%clk 0:00:07]}  Rc6 {[%clk 0:00:04]} 46. g3 {[%clk 0:00:02]}  fxg3+ {[%clk 0:00:04]} 47. Bxg3 {[%clk 0:00:03]}  Rxc4 {[%clk 0:00:05]} 48. Bb8 {[%clk 0:00:03]}  Ra4 {[%clk 0:00:05]} 49. Bd6 {[%clk 0:00:02]}  Kf7 {[%clk 0:00:06]} 0-1

[Event "January 9 Early 2024"]
[Site "https://www.chess.com"]
[Date "2024.01.11"]
[Round "3"]
[White "Lagarde, Maxime"]
[Black "Olsson, Linus"]
[Result "1-0"]
[Board "270"]
[TimeControl "180+1"]
[WhiteFideId "662399"]
[BlackFideId "1706098"]
[WhiteElo "2814"]
[BlackElo "2510"]
[WhiteTeam "FRA"]
[BlackTeam "SWE"]
[WhiteClock "0:00:14"]
[BlackClock "0:00:07"]

1. d4 {[%clk 0:03:00]}  Nf6 {[%clk 0:02:59]} 2. c4 {[%clk 0:03:01]}  e5 {[%clk 0:02:57]} 3. dxe5 {[%clk 0:02:59]}  Ne4 {[%clk 0:02:56]} 4. Nf3 {[%clk 0:02:58]}  Bb4+ {[%clk 0:02:54]} 5. Bd2 {[%clk 0:02:53]}  Nxd2 {[%clk 0:02:54]} 6. Nbxd2 {[%clk 0:02:54]}  Nc6 {[%clk 0:02:54]} 7. a3 {[%clk 0:02:53]}  Bxd2+ {[%clk 0:02:53]} 8. Qxd2 {[%clk 0:02:54]}  Qe7 {[%clk 0:02:53]} 9. Qc3 {[%clk 0:02:50]}  b6 {[%clk 0:02:53]} 10. b4 {[%clk 0:01:58]}  Bb7 {[%clk 0:02:47]} 11. e3 {[%clk 0:01:55]}  O-O-O {[%clk 0:02:45]} 12. b5 {[%clk 0:01:55]}  Na5 {[%clk 0:02:44]} 13. Be2 {[%clk 0:01:49]}  g5 {[%clk 0:02:38]} 14. O-O {[%clk 0:01:45]}  g4 {[%clk 0:02:32]} 15. Nd4 {[%clk 0:01:45]}  Qxe5 {[%clk 0:02:12]} 16. Rac1 {[%clk 0:01:45]}  Rhg8 {[%clk 0:02:01]} 17. Rfd1 {[%clk 0:01:40]}  h5 {[%clk 0:01:47]} 18. c5 {[%clk 0:01:37]}  Qxc5 {[%clk 0:01:23]} 19. Qxc5 {[%clk 0:01:25]}  bxc5 {[%clk 0:01:24]} 20. Rxc5 {[%clk 0:01:25]}  h4 {[%clk 0:01:19]} 21. Rdc1 {[%clk 0:01:18]}  g3 {[%clk 0:00:50]} 22. Bf3 {[%clk 0:01:15]}  Bxf3 {[%clk 0:00:44]} 23. gxf3 {[%clk 0:01:12]}  c6 {[%clk 0:00:25]} 24. bxc6 {[%clk 0:01:08]}  Nxc6 {[%clk 0:00:26]} 25. Nxc6 {[%clk 0:01:05]}  dxc6 {[%clk 0:00:27]} 26. Rxc6+ {[%clk 0:01:06]}  Kb8 {[%clk 0:00:21]} 27. R6c2 {[%clk 0:01:02]}  Rd3 {[%clk 0:00:17]} 28. hxg3 {[%clk 0:00:56]}  hxg3 {[%clk 0:00:18]} 29. fxg3 {[%clk 0:00:56]}  Rxg3+ {[%clk 0:00:18]} 30. Kf2 {[%clk 0:00:56]}  Rg8 {[%clk 0:00:17]} 31. a4 {[%clk 0:00:51]}  Ra3 {[%clk 0:00:15]} 32. Rc4 {[%clk 0:00:51]}  Ra2+ {[%clk 0:00:14]} 33. R1c2 {[%clk 0:00:51]}  Rxc2+ {[%clk 0:00:13]} 34. Rxc2 {[%clk 0:00:52]}  Kb7 {[%clk 0:00:13]} 35. e4 {[%clk 0:00:51]}  Kb6 {[%clk 0:00:12]} 36. Rb2+ {[%clk 0:00:50]}  Ka5 {[%clk 0:00:12]} 37. Rb7 {[%clk 0:00:50]}  Ra8 {[%clk 0:00:06]} 38. Rxf7 {[%clk 0:00:49]}  Kxa4 {[%clk 0:00:07]} 39. e5 {[%clk 0:00:49]}  Kb5 {[%clk 0:00:06]} 40. Ke3 {[%clk 0:00:46]}  a5 {[%clk 0:00:05]} 41. Ke4 {[%clk 0:00:42]}  a4 {[%clk 0:00:05]} 42. Rb7+ {[%clk 0:00:43]}  Kc6 {[%clk 0:00:05]} 43. Rb2 {[%clk 0:00:42]}  a3 {[%clk 0:00:05]} 44. Ra2 {[%clk 0:00:42]}  Ra4+ {[%clk 0:00:02]} 45. Kf5 {[%clk 0:00:42]}  Kd5 {[%clk 0:00:03]} 46. f4 {[%clk 0:00:38]}  Ra8 {[%clk 0:00:02]} 47. Rd2+ {[%clk 0:00:31]}  Kc4 {[%clk 0:00:01]} 48. Ra2 {[%clk 0:00:22]}  Kd5 {[%clk 0:00:02]} 49. Kg5 {[%clk 0:00:17]}  Ke4 {[%clk 0:00:01]} 50. e6 {[%clk 0:00:16]}  Kd5 {[%clk 0:00:01]} 51. f5 {[%clk 0:00:15]}  Ke5 {[%clk 0:00:02]} 52. Re2+ {[%clk 0:00:14]}  Kd5 {[%clk 0:00:02]} 53. e7 {[%clk 0:00:14]}  a2 {[%clk 0:00:02]} 54. Rxa2 {[%clk 0:00:14]}  Re8 {[%clk 0:00:03]} 55. f6 {[%clk 0:00:14]}  Ke6 {[%clk 0:00:03]} 56. Re2+ {[%clk 0:00:13]}  Kf7 {[%clk 0:00:04]} 57. Kf5 {[%clk 0:00:13]}  Rg8 {[%clk 0:00:03]} 58. e8=Q+ {[%clk 0:00:13]}  Rxe8 {[%clk 0:00:03]} 59. Rxe8 {[%clk 0:00:13]}  Kxe8 {[%clk 0:00:04]} 60. Kg6 {[%clk 0:00:12]}  Kf8 {[%clk 0:00:05]} 61. f7 {[%clk 0:00:13]}  Ke7 {[%clk 0:00:06]} 62. Kg7 {[%clk 0:00:14]}  Ke6 {[%clk 0:00:06]} 63. f8=Q {[%clk 0:00:14]}  Kd7 {[%clk 0:00:07]} 64. Qf6 {[%clk 0:00:14]} 1-0

[Event "January 9 Early 2024"]
[Site "https://www.chess.com"]
[Date "2024.01.11"]
[Round "3"]
[White "Kurmangaliyeva, Liya"]
[Black "Fedoseev, Vladimir"]
[Result "0-1"]
[Board "271"]
[TimeControl "180+1"]
[WhiteFideId "13725831"]
[BlackFideId "24130737"]
[WhiteElo "2527"]
[BlackElo "3056"]
[WhiteTeam "KAZ"]
[BlackTeam "SLO"]
[WhiteClock "0:00:06"]
[BlackClock "0:00:11"]

1. d4 {[%clk 0:02:59]}  d5 {[%clk 0:02:13]} 2. Nf3 {[%clk 0:02:56]}  Nf6 {[%clk 0:02:12]} 3. c4 {[%clk 0:02:56]}  c6 {[%clk 0:02:13]} 4. Nc3 {[%clk 0:02:41]}  e6 {[%clk 0:02:12]} 5. e3 {[%clk 0:02:35]}  Be7 {[%clk 0:02:09]} 6. Qc2 {[%clk 0:02:24]}  O-O {[%clk 0:02:04]} 7. Bd3 {[%clk 0:02:02]}  dxc4 {[%clk 0:01:41]} 8. Bxc4 {[%clk 0:02:02]}  c5 {[%clk 0:01:42]} 9. O-O {[%clk 0:01:52]}  cxd4 {[%clk 0:01:41]} 10. Nxd4 {[%clk 0:01:45]}  Bd7 {[%clk 0:01:41]} 11. Rd1 {[%clk 0:01:35]}  Qc8 {[%clk 0:01:33]} 12. Be2 {[%clk 0:01:24]}  Nc6 {[%clk 0:01:30]} 13. Ndb5 {[%clk 0:01:21]}  a6 {[%clk 0:01:26]} 14. Nd6 {[%clk 0:01:15]}  Qc7 {[%clk 0:01:23]} 15. Nce4 {[%clk 0:01:02]}  Nd5 {[%clk 0:01:16]} 16. Nc4 {[%clk 0:00:54]}  b5 {[%clk 0:01:16]} 17. Ncd2 {[%clk 0:00:51]}  Nd4 {[%clk 0:01:11]} 18. Qxc7 {[%clk 0:00:41]}  Nxe2+ {[%clk 0:01:10]} 19. Kf1 {[%clk 0:00:41]}  Nxc7 {[%clk 0:01:11]} 20. Kxe2 {[%clk 0:00:42]}  b4 {[%clk 0:01:12]} 21. Nb3 {[%clk 0:00:36]}  Bb5+ {[%clk 0:01:11]} 22. Ke1 {[%clk 0:00:36]}  Bc6 {[%clk 0:00:51]} 23. f3 {[%clk 0:00:34]}  a5 {[%clk 0:00:43]} 24. Bd2 {[%clk 0:00:29]}  Bd5 {[%clk 0:00:34]} 25. Nd4 {[%clk 0:00:26]}  e5 {[%clk 0:00:31]} 26. Nf5 {[%clk 0:00:25]}  Bd8 {[%clk 0:00:29]} 27. b3 {[%clk 0:00:20]}  g6 {[%clk 0:00:30]} 28. Nfd6 {[%clk 0:00:20]}  f5 {[%clk 0:00:30]} 29. Ng3 {[%clk 0:00:19]}  Ra6 {[%clk 0:00:29]} 30. Nc4 {[%clk 0:00:19]}  Bxc4 {[%clk 0:00:24]} 31. bxc4 {[%clk 0:00:19]}  Ne6 {[%clk 0:00:25]} 32. Rac1 {[%clk 0:00:18]}  Nc5 {[%clk 0:00:25]} 33. Ke2 {[%clk 0:00:18]}  Be7 {[%clk 0:00:24]} 34. Be1 {[%clk 0:00:17]}  Kf7 {[%clk 0:00:24]} 35. e4 {[%clk 0:00:17]}  f4 {[%clk 0:00:24]} 36. Nf1 {[%clk 0:00:17]}  Ke6 {[%clk 0:00:22]} 37. Bf2 {[%clk 0:00:17]}  Na4 {[%clk 0:00:21]} 38. Be1 {[%clk 0:00:16]}  Rc8 {[%clk 0:00:21]} 39. Rd5 {[%clk 0:00:16]}  Nb6 {[%clk 0:00:20]} 40. Rb5 {[%clk 0:00:13]}  Nxc4 {[%clk 0:00:21]} 41. Nd2 {[%clk 0:00:12]}  Nd6 {[%clk 0:00:21]} 42. Rxc8 {[%clk 0:00:12]}  Nxb5 {[%clk 0:00:22]} 43. Rb8 {[%clk 0:00:11]}  Nd4+ {[%clk 0:00:22]} 44. Kd3 {[%clk 0:00:11]}  a4 {[%clk 0:00:22]} 45. Nc4 {[%clk 0:00:12]}  b3 {[%clk 0:00:22]} 46. axb3 {[%clk 0:00:12]}  Nxb3 {[%clk 0:00:20]} 47. Bc3 {[%clk 0:00:12]}  Nc5+ {[%clk 0:00:21]} 48. Kc2 {[%clk 0:00:12]}  Nd7 {[%clk 0:00:21]} 49. Rb7 {[%clk 0:00:12]}  Rc6 {[%clk 0:00:21]} 50. Nb2 {[%clk 0:00:09]}  a3 {[%clk 0:00:20]} 51. Nd3 {[%clk 0:00:09]}  Nb6 {[%clk 0:00:19]} 52. Ra7 {[%clk 0:00:09]}  Nc4 {[%clk 0:00:18]} 53. Kb3 {[%clk 0:00:08]}  Bd6 {[%clk 0:00:18]} 54. Bb4 {[%clk 0:00:07]}  Nb2 {[%clk 0:00:11]} 55. Nxb2 {[%clk 0:00:06]}  axb2 {[%clk 0:00:11]} 0-1

[Event "January 9 Early 2024"]
[Site "https://www.chess.com"]
[Date "2024.01.11"]
[Round "3"]
[White "Ismagilov, Damir"]
[Black "Cruz, William Ferreira Da"]
[Result "0-1"]
[Board "273"]
[TimeControl "180+1"]
[WhiteFideId "34199982"]
[BlackFideId "2118050"]
[WhiteElo "2548"]
[BlackElo "2326"]
[WhiteTeam "RUS"]
[BlackTeam "BRA"]
[WhiteClock "0:00:31"]
[BlackClock "0:00:19"]

1. e4 {[%clk 0:03:00]}  e6 {[%clk 0:02:53]} 2. d4 {[%clk 0:02:59]}  d5 {[%clk 0:02:53]} 3. exd5 {[%clk 0:03:00]}  exd5 {[%clk 0:02:53]} 4. Bd3 {[%clk 0:03:01]}  Bd6 {[%clk 0:02:51]} 5. Ne2 {[%clk 0:03:01]}  Nf6 {[%clk 0:02:50]} 6. Bg5 {[%clk 0:02:59]}  h6 {[%clk 0:02:49]} 7. Bh4 {[%clk 0:02:59]}  Nc6 {[%clk 0:02:48]} 8. c3 {[%clk 0:02:58]}  O-O {[%clk 0:02:40]} 9. O-O {[%clk 0:02:58]}  Bxh2+ {[%clk 0:02:26]} 10. Kh1 {[%clk 0:02:34]}  Bd6 {[%clk 0:02:20]} 11. Nd2 {[%clk 0:02:31]}  Be7 {[%clk 0:02:19]} 12. Nf3 {[%clk 0:02:29]}  Bg4 {[%clk 0:02:17]} 13. Nh2 {[%clk 0:02:22]}  Bh5 {[%clk 0:02:13]} 14. Qc2 {[%clk 0:02:12]}  Ne4 {[%clk 0:02:07]} 15. Bxe7 {[%clk 0:02:01]}  Qxe7 {[%clk 0:02:06]} 16. Nf4 {[%clk 0:02:01]}  Qh4 {[%clk 0:01:42]} 17. Nxd5 {[%clk 0:01:45]}  Bg6 {[%clk 0:01:33]} 18. Nf4 {[%clk 0:01:40]}  Qxf4 {[%clk 0:01:31]} 19. Rae1 {[%clk 0:01:26]}  Rfe8 {[%clk 0:01:29]} 20. Nf3 {[%clk 0:01:23]}  Ng5 {[%clk 0:01:20]} 21. Bxg6 {[%clk 0:01:20]}  Nxf3 {[%clk 0:01:15]} 22. Bh7+ {[%clk 0:01:20]}  Kh8 {[%clk 0:01:13]} 23. gxf3 {[%clk 0:01:20]}  Qxf3+ {[%clk 0:01:13]} 24. Kg1 {[%clk 0:01:21]}  g6 {[%clk 0:01:08]} 25. Re3 {[%clk 0:01:12]}  Qf6 {[%clk 0:00:53]} 26. Kg2 {[%clk 0:00:39]}  Kxh7 {[%clk 0:00:49]} 27. Rf3 {[%clk 0:00:40]}  Qe6 {[%clk 0:00:42]} 28. Rh1 {[%clk 0:00:39]}  Qg4+ {[%clk 0:00:39]} 29. Rg3 {[%clk 0:00:39]}  Qe4+ {[%clk 0:00:39]} 30. Qxe4 {[%clk 0:00:38]}  Rxe4 {[%clk 0:00:39]} 31. Rgh3 {[%clk 0:00:39]}  h5 {[%clk 0:00:37]} 32. Rf3 {[%clk 0:00:39]}  Kg7 {[%clk 0:00:37]} 33. b4 {[%clk 0:00:40]}  Rae8 {[%clk 0:00:36]} 34. b5 {[%clk 0:00:39]}  Ne7 {[%clk 0:00:35]} 35. Rb1 {[%clk 0:00:40]}  Nf5 {[%clk 0:00:34]} 36. Rd3 {[%clk 0:00:38]}  Rg4+ {[%clk 0:00:33]} 37. Kf1 {[%clk 0:00:34]}  Rh4 {[%clk 0:00:33]} 38. Kg2 {[%clk 0:00:34]}  Ree4 {[%clk 0:00:31]} 39. a4 {[%clk 0:00:29]}  Reg4+ {[%clk 0:00:30]} 40. Kf3 {[%clk 0:00:29]}  Rh3+ {[%clk 0:00:29]} 41. Ke2 {[%clk 0:00:29]}  Rxd3 {[%clk 0:00:29]} 42. Kxd3 {[%clk 0:00:29]}  h4 {[%clk 0:00:29]} 43. Ke2 {[%clk 0:00:28]}  h3 {[%clk 0:00:28]} 44. Kf3 {[%clk 0:00:28]}  Rh4 {[%clk 0:00:27]} 45. a5 {[%clk 0:00:24]}  h2 {[%clk 0:00:27]} 46. Rh1 {[%clk 0:00:24]}  Kf6 {[%clk 0:00:25]} 47. c4 {[%clk 0:00:22]}  Nxd4+ {[%clk 0:00:23]} 48. Kg3 {[%clk 0:00:22]}  Nf5+ {[%clk 0:00:23]} 49. Kg2 {[%clk 0:00:23]}  g5 {[%clk 0:00:22]} 50. c5 {[%clk 0:00:23]}  b6 {[%clk 0:00:21]} 51. c6 {[%clk 0:00:20]}  bxa5 {[%clk 0:00:20]} 52. Ra1 {[%clk 0:00:18]}  h1=Q+ {[%clk 0:00:20]} 53. Rxh1 {[%clk 0:00:19]}  Rxh1 {[%clk 0:00:20]} 54. Kxh1 {[%clk 0:00:20]}  a4 {[%clk 0:00:20]} 55. b6 {[%clk 0:00:21]}  axb6 {[%clk 0:00:20]} 56. f4 {[%clk 0:00:22]}  a3 {[%clk 0:00:20]} 57. Kg2 {[%clk 0:00:23]}  a2 {[%clk 0:00:20]} 58. Kf3 {[%clk 0:00:24]}  a1=Q {[%clk 0:00:19]} 59. fxg5+ {[%clk 0:00:24]}  Kxg5 {[%clk 0:00:18]} 60. Ke4 {[%clk 0:00:25]}  Ng7 {[%clk 0:00:18]} 61. Kd5 {[%clk 0:00:25]}  Qa5+ {[%clk 0:00:18]} 62. Kc4 {[%clk 0:00:25]}  Qc5+ {[%clk 0:00:18]} 63. Kd3 {[%clk 0:00:26]}  Qxc6 {[%clk 0:00:18]} 64. Kd2 {[%clk 0:00:27]}  b5 {[%clk 0:00:18]} 65. Ke1 {[%clk 0:00:28]}  b4 {[%clk 0:00:19]} 66. Kf1 {[%clk 0:00:29]}  b3 {[%clk 0:00:19]} 67. Ke2 {[%clk 0:00:30]}  b2 {[%clk 0:00:20]} 68. Kf2 {[%clk 0:00:30]}  b1=Q {[%clk 0:00:20]} 69. Ke3 {[%clk 0:00:31]}  Qb3+ {[%clk 0:00:20]} 70. Kd2 {[%clk 0:00:31]}  Qcc2+ {[%clk 0:00:19]} 0-1